[Event "*** Titled Tuesday Blitz"]
[Site "Chess.com"]
[Date "2020.05.05"]
[Round "3"]
[White "BaMBoMaTTo"]
[Black "Bigfish1995"]
[Result "0-1"]
[WhiteElo "2676"]
[BlackElo "3115"]
[TimeControl "180+1"]
[EndTime "10:28:12 PDT"]
[Termination "Bigfish1995 won on time"]

1. d4 {[%clk 0:03:00.1]} 1... Nf6 {[%clk 0:02:38.3]} 2. c4 {[%clk 0:03:00.4]}
2... e6 {[%clk 0:02:38.4]} 3. Nf3 {[%clk 0:03:00.8]} 3... b6 {[%clk 0:02:38.7]}
4. g3 {[%clk 0:03:00.3]} 4... Ba6 {[%clk 0:02:38.4]} 5. Qc2 {[%clk 0:03:00.7]}
5... Bb7 {[%clk 0:02:37.7]} 6. Bg2 {[%clk 0:03:00.9]} 6... c5 {[%clk 0:02:37.8]}
7. d5 {[%clk 0:03:01.3]} 7... exd5 {[%clk 0:02:38.5]} 8. cxd5 {[%clk 0:03:02.2]}
8... Nxd5 {[%clk 0:02:39.1]} 9. O-O {[%clk 0:03:02.8]} 9... Be7 {[%clk
0:02:39.7]} 10. Rd1 {[%clk 0:03:03.1]} 10... Nc6 {[%clk 0:02:40.2]} 11. a3
{[%clk 0:03:03.6]} 11... Nc7 {[%clk 0:02:39.1]} 12. e4 {[%clk 0:03:02.9]} 12...
O-O {[%clk 0:02:38.8]} 13. Nc3 {[%clk 0:03:03]} 13... d6 {[%clk 0:02:32]} 14.
Be3 {[%clk 0:02:07.5]} 14... Qc8 {[%clk 0:02:31]} 15. Rd2 {[%clk 0:01:53.7]}
15... Ne5 {[%clk 0:02:30.6]} 16. Bf4 {[%clk 0:01:41.8]} 16... Nxf3+ {[%clk
0:02:25]} 17. Bxf3 {[%clk 0:01:42.6]} 17... Ne6 {[%clk 0:02:25.3]} 18. Bg4
{[%clk 0:01:18.1]} 18... Qe8 {[%clk 0:02:19.1]} 19. Be3 {[%clk 0:01:15.1]} 19...
Bf6 {[%clk 0:02:12.6]} 20. Rxd6 {[%clk 0:01:01.1]} 20... Nd4 {[%clk 0:02:10.3]}
21. Qd3 {[%clk 0:00:58.3]} 21... Be5 {[%clk 0:02:08.9]} 22. Rd5 {[%clk 0:00:41]}
22... Bxd5 {[%clk 0:02:08.4]} 23. Nxd5 {[%clk 0:00:41.9]} 23... Rd8 {[%clk
0:02:08]} 24. f4 {[%clk 0:00:40]} 24... f5 {[%clk 0:02:07]} 25. fxe5 {[%clk
0:00:31]} 25... fxg4 {[%clk 0:01:58.6]} 26. Bxd4 {[%clk 0:00:31.1]} 26... cxd4
{[%clk 0:01:58.6]} 27. Qxd4 {[%clk 0:00:32]} 27... Qe6 {[%clk 0:01:51.8]} 28.
Rc1 {[%clk 0:00:24.7]} 28... Rd7 {[%clk 0:01:43.2]} 29. Rc7 {[%clk 0:00:21.5]}
29... Qf7 {[%clk 0:01:37.8]} 30. Qc4 {[%clk 0:00:06.1]} 30... Rxc7 {[%clk
0:01:35.5]} 0-1

[Event "*** Titled Tuesday Blitz"]
[Site "Chess.com"]
[Date "2020.05.05"]
[Round "3"]
[White "Harsha_Bharathakoti"]
[Black "SaySpade4VIP"]
[Result "1-0"]
[WhiteElo "2828"]
[BlackElo "2612"]
[TimeControl "180+1"]
[EndTime "10:28:12 PDT"]
[Termination "Harsha_Bharathakoti won by resignation"]

1. c4 {[%clk 0:03:00.9]} 1... e5 {[%clk 0:02:56.7]} 2. Nc3 {[%clk 0:03:00.4]}
2... Nc6 {[%clk 0:02:55.7]} 3. e3 {[%clk 0:03:00.6]} 3... Nf6 {[%clk 0:02:51.3]}
4. Nf3 {[%clk 0:03:00.8]} 4... Bb4 {[%clk 0:02:51.4]} 5. Qc2 {[%clk 0:03:01.3]}
5... O-O {[%clk 0:02:49.5]} 6. Nd5 {[%clk 0:03:01]} 6... Re8 {[%clk 0:02:43.4]}
7. Ng5 {[%clk 0:02:44.2]} 7... g6 {[%clk 0:02:29.7]} 8. h4 {[%clk 0:02:37]} 8...
Bf8 {[%clk 0:02:25.5]} 9. a3 {[%clk 0:02:28.1]} 9... d6 {[%clk 0:02:04.7]} 10.
Nxf6+ {[%clk 0:02:01.5]} 10... Qxf6 {[%clk 0:02:05.6]} 11. Be2 {[%clk
0:02:02.4]} 11... Bg7 {[%clk 0:01:26.9]} 12. Ne4 {[%clk 0:01:47.8]} 12... Qe7
{[%clk 0:01:16.6]} 13. g4 {[%clk 0:01:47.6]} 13... f5 {[%clk 0:01:06.5]} 14.
gxf5 {[%clk 0:01:47.7]} 14... gxf5 {[%clk 0:01:07.4]} 15. Ng3 {[%clk 0:01:35.7]}
15... e4 {[%clk 0:00:50.3]} 16. Nh5 {[%clk 0:01:23.5]} 16... Be5 {[%clk
0:00:29]} 17. Rb1 {[%clk 0:01:24]} 17... Qf7 {[%clk 0:00:19.6]} 18. b4 {[%clk
0:01:19.8]} 18... Ne7 {[%clk 0:00:17.6]} 19. Bb2 {[%clk 0:01:19]} 19... Ng6
{[%clk 0:00:16.9]} 20. Rg1 {[%clk 0:01:16.5]} 20... Kh8 {[%clk 0:00:16.3]} 21.
Nf4 {[%clk 0:01:09]} 21... Nxf4 {[%clk 0:00:10]} 22. exf4 {[%clk 0:01:08.9]}
22... Bf6 {[%clk 0:00:10.2]} 23. Bh5 {[%clk 0:01:00]} 1-0

[Event "*** Titled Tuesday Blitz"]
[Site "Chess.com"]
[Date "2020.05.05"]
[Round "3"]
[White "Zhuu96"]
[Black "vladimirdamjanovic"]
[Result "0-1"]
[WhiteElo "2917"]
[BlackElo "2613"]
[TimeControl "180+1"]
[EndTime "10:28:20 PDT"]
[Termination "vladimirdamjanovic won by resignation"]

1. d4 {[%clk 0:03:00.9]} 1... Nf6 {[%clk 0:02:58.9]} 2. c4 {[%clk 0:03:00.6]}
2... c5 {[%clk 0:02:58.8]} 3. d5 {[%clk 0:02:58.7]} 3... b5 {[%clk 0:02:58.5]}
4. cxb5 {[%clk 0:02:53.4]} 4... a6 {[%clk 0:02:58]} 5. Nc3 {[%clk 0:02:53.6]}
5... axb5 {[%clk 0:02:47.8]} 6. Nxb5 {[%clk 0:02:53.6]} 6... g6 {[%clk
0:02:30.1]} 7. e3 {[%clk 0:02:41.9]} 7... Bg7 {[%clk 0:02:30]} 8. Ne2 {[%clk
0:02:34.3]} 8... O-O {[%clk 0:02:29.4]} 9. Nec3 {[%clk 0:02:34]} 9... e6 {[%clk
0:02:21.7]} 10. d6 {[%clk 0:02:31.3]} 10... Nc6 {[%clk 0:02:18.5]} 11. Be2
{[%clk 0:02:30.2]} 11... Ba6 {[%clk 0:02:18.7]} 12. O-O {[%clk 0:02:28.2]} 12...
Ne8 {[%clk 0:02:18.7]} 13. a4 {[%clk 0:02:26.1]} 13... Qb8 {[%clk 0:02:17.9]}
14. Ne4 {[%clk 0:02:24.8]} 14... Qb6 {[%clk 0:02:11.7]} 15. Qc2 {[%clk
0:02:23.9]} 15... Bxb5 {[%clk 0:02:12]} 16. Bxb5 {[%clk 0:02:23.3]} 16... Nb4
{[%clk 0:02:12.9]} 17. Qxc5 {[%clk 0:02:20.7]} 17... Qxc5 {[%clk 0:02:13.2]} 18.
Nxc5 {[%clk 0:02:20.8]} 18... Nxd6 {[%clk 0:02:14.1]} 19. Bxd7 {[%clk
0:02:19.5]} 19... Na6 {[%clk 0:02:07.9]} 20. Nxa6 {[%clk 0:02:04.5]} 20... Rxa6
{[%clk 0:02:08.8]} 21. Rd1 {[%clk 0:02:01.4]} 21... Rb8 {[%clk 0:02:09.1]} 22.
Rb1 {[%clk 0:01:58.4]} 22... Rb7 {[%clk 0:02:05.2]} 23. Bc8 {[%clk 0:01:34.7]}
23... Nxc8 {[%clk 0:02:04.9]} 24. Rd8+ {[%clk 0:01:35.3]} 24... Bf8 {[%clk
0:02:05.8]} 25. Rxc8 {[%clk 0:01:35.9]} 25... Rxa4 {[%clk 0:02:01.8]} 26. b3
{[%clk 0:01:33.4]} 26... Ra5 {[%clk 0:01:57.2]} 27. e4 {[%clk 0:01:29.5]} 27...
f5 {[%clk 0:01:55.7]} 28. Bh6 {[%clk 0:01:26.8]} 28... Rf7 {[%clk 0:01:54]} 29.
b4 {[%clk 0:01:25]} 29... Raa7 {[%clk 0:01:53.7]} 30. exf5 {[%clk 0:01:07.3]}
30... gxf5 {[%clk 0:01:49.8]} 31. f4 {[%clk 0:01:04.5]} 31... Rac7 {[%clk
0:01:46.8]} 32. Rxc7 {[%clk 0:01:00.7]} 32... Rxc7 {[%clk 0:01:47.7]} 33. Bxf8
{[%clk 0:01:00.8]} 33... Kxf8 {[%clk 0:01:48.1]} 34. b5 {[%clk 0:00:58.5]} 34...
Rb7 {[%clk 0:01:46.7]} 35. Kf2 {[%clk 0:00:57.5]} 35... Ke7 {[%clk 0:01:46.8]}
36. Ke3 {[%clk 0:00:57.7]} 36... Kd6 {[%clk 0:01:47.7]} 37. Kd4 {[%clk
0:00:45.9]} 37... Rb6 {[%clk 0:01:47]} 38. g3 {[%clk 0:00:43.2]} 38... h6 {[%clk
0:01:43.6]} 39. Rb2 {[%clk 0:00:42.6]} 39... h5 {[%clk 0:01:43.6]} 40. Rb1
{[%clk 0:00:42.8]} 40... Kc7 {[%clk 0:01:40]} 41. Ke5 {[%clk 0:00:41.5]} 41...
Kd7 {[%clk 0:01:35.7]} 42. Rb3 {[%clk 0:00:41.1]} 42... Ke7 {[%clk 0:01:35.8]}
43. h4 {[%clk 0:00:38]} 43... Rd6 {[%clk 0:01:23.6]} 0-1

[Event "*** Titled Tuesday Blitz"]
[Site "Chess.com"]
[Date "2020.05.05"]
[Round "3"]
[White "Orest_Vovk"]
[Black "julinha97"]
[Result "1-0"]
[WhiteElo "2424"]
[BlackElo "2163"]
[TimeControl "180+1"]
[EndTime "10:28:21 PDT"]
[Termination "Orest_Vovk won by resignation"]

1. g4 {[%clk 0:03:00.9]} 1... d5 {[%clk 0:02:56.4]} 2. Bg2 {[%clk 0:02:59.5]}
2... c5 {[%clk 0:02:55.1]} 3. h3 {[%clk 0:02:58.8]} 3... Nc6 {[%clk 0:02:55.4]}
4. c4 {[%clk 0:02:57.4]} 4... d4 {[%clk 0:02:54.7]} 5. Bxc6+ {[%clk 0:02:55.1]}
5... bxc6 {[%clk 0:02:54.7]} 6. Qa4 {[%clk 0:02:54.1]} 6... Qc7 {[%clk
0:02:54.3]} 7. d3 {[%clk 0:02:50.7]} 7... e5 {[%clk 0:02:52.5]} 8. Nf3 {[%clk
0:02:50.5]} 8... Bd6 {[%clk 0:02:52.5]} 9. Nbd2 {[%clk 0:02:50.2]} 9... Ne7
{[%clk 0:02:50]} 10. Ne4 {[%clk 0:02:49.8]} 10... O-O {[%clk 0:02:50]} 11. Nfg5
{[%clk 0:02:46.3]} 11... Ng6 {[%clk 0:02:45.1]} 12. Nxd6 {[%clk 0:02:43.9]}
12... Qxd6 {[%clk 0:02:44.7]} 13. Ne4 {[%clk 0:02:44.2]} 13... Qe7 {[%clk
0:02:41.1]} 14. Qa5 {[%clk 0:02:44]} 14... f5 {[%clk 0:02:39.2]} 15. gxf5 {[%clk
0:02:31.1]} 15... Bxf5 {[%clk 0:02:40.1]} 16. Qxc5 {[%clk 0:02:29.8]} 16... Qh4
{[%clk 0:02:40.1]} 17. Ng3 {[%clk 0:02:19.9]} 17... Bd7 {[%clk 0:02:04.2]} 18.
Bd2 {[%clk 0:01:51.6]} 18... Rae8 {[%clk 0:00:53]} 19. Rh2 {[%clk 0:01:42.6]}
19... Rxf2 {[%clk 0:00:45]} 20. Kxf2 {[%clk 0:01:33.9]} 20... Rf8+ {[%clk
0:00:45.3]} 21. Kg2 {[%clk 0:01:21.5]} 21... Nf4+ {[%clk 0:00:34.4]} 22. Bxf4
{[%clk 0:01:19.3]} 22... exf4 {[%clk 0:00:34.6]} 23. Ne4 {[%clk 0:01:16.7]}
23... f3+ {[%clk 0:00:12.3]} 24. exf3 {[%clk 0:01:14.1]} 24... Qf4 {[%clk
0:00:12.9]} 25. Rf1 {[%clk 0:01:09.2]} 25... Rf5 {[%clk 0:00:09.2]} 26. Qd6
{[%clk 0:01:04.6]} 26... Be8 {[%clk 0:00:09.2]} 27. Qxf4 {[%clk 0:01:01.4]} 1-0

[Event "*** Titled Tuesday Blitz"]
[Site "Chess.com"]
[Date "2020.05.05"]
[Round "3"]
[White "vugarrasulov"]
[Black "ValeriyGrinev"]
[Result "1-0"]
[WhiteElo "2796"]
[BlackElo "2525"]
[TimeControl "180+1"]
[EndTime "10:28:23 PDT"]
[Termination "vugarrasulov won by resignation"]

1. c4 {[%clk 0:03:00.9]} 1... c5 {[%clk 0:02:58.9]} 2. Nc3 {[%clk 0:03:00.7]}
2... Nc6 {[%clk 0:02:59]} 3. g3 {[%clk 0:03:00.9]} 3... g6 {[%clk 0:02:59.5]} 4.
Bg2 {[%clk 0:03:01.1]} 4... Bg7 {[%clk 0:03:00.4]} 5. a3 {[%clk 0:02:59.8]} 5...
d6 {[%clk 0:02:59.6]} 6. Rb1 {[%clk 0:02:58.8]} 6... a5 {[%clk 0:02:58.8]} 7. e3
{[%clk 0:02:56]} 7... e6 {[%clk 0:02:39.4]} 8. h4 {[%clk 0:02:54.9]} 8... h6
{[%clk 0:02:33.9]} 9. Nf3 {[%clk 0:02:54]} 9... Nge7 {[%clk 0:02:34.2]} 10. d4
{[%clk 0:02:51.1]} 10... cxd4 {[%clk 0:02:31.7]} 11. exd4 {[%clk 0:02:42.3]}
11... d5 {[%clk 0:02:21.2]} 12. c5 {[%clk 0:02:38.2]} 12... Nf5 {[%clk
0:02:20.2]} 13. Ne2 {[%clk 0:02:38.4]} 13... Qf6 {[%clk 0:02:09.7]} 14. Be3
{[%clk 0:02:21.4]} 14... O-O {[%clk 0:02:06.2]} 15. O-O {[%clk 0:02:18.6]} 15...
b6 {[%clk 0:02:03.4]} 16. b4 {[%clk 0:02:15.8]} 16... axb4 {[%clk 0:02:03]} 17.
axb4 {[%clk 0:02:16.7]} 17... bxc5 {[%clk 0:02:03.3]} 18. dxc5 {[%clk 0:02:17]}
18... Nxe3 {[%clk 0:02:00.8]} 19. fxe3 {[%clk 0:02:17.1]} 19... Ne5 {[%clk
0:01:51.7]} 20. b5 {[%clk 0:01:59.7]} 20... Nc4 {[%clk 0:01:48.8]} 21. Nd2
{[%clk 0:01:57.1]} 21... Nxe3 {[%clk 0:01:48.4]} 22. Rxf6 {[%clk 0:01:51.7]}
22... Nxd1 {[%clk 0:01:48.4]} 23. Rf3 {[%clk 0:01:50.4]} 23... Nb2 {[%clk
0:01:48.5]} 24. c6 {[%clk 0:01:41.7]} 24... Rb8 {[%clk 0:01:46.3]} 25. Rb3
{[%clk 0:01:40.4]} 25... Nc4 {[%clk 0:01:22.6]} 26. Nxc4 {[%clk 0:01:36.3]}
26... dxc4 {[%clk 0:01:23.5]} 27. c7 {[%clk 0:01:27.4]} 27... Rb6 {[%clk
0:01:21.2]} 28. Rb4 {[%clk 0:01:26.6]} 28... c3 {[%clk 0:01:18.4]} 29. Rc4
{[%clk 0:01:21.9]} 29... Bd7 {[%clk 0:00:58.4]} 30. Nxc3 {[%clk 0:01:21]} 30...
Rc8 {[%clk 0:00:58.9]} 31. Rd1 {[%clk 0:01:13.5]} 31... Bxc3 {[%clk 0:00:43.6]}
32. Rxc3 {[%clk 0:01:12]} 1-0

[Event "*** Titled Tuesday Blitz"]
[Site "Chess.com"]
[Date "2020.05.05"]
[Round "3"]
[White "mrkvoz"]
[Black "davidkalashian"]
[Result "1-0"]
[WhiteElo "2814"]
[BlackElo "2534"]
[TimeControl "180+1"]
[EndTime "10:28:24 PDT"]
[Termination "mrkvoz won by resignation"]

1. e4 {[%clk 0:03:00.9]} 1... c6 {[%clk 0:02:57.9]} 2. Nc3 {[%clk 0:03:00.5]}
2... g6 {[%clk 0:02:58.8]} 3. d4 {[%clk 0:03:00]} 3... Bg7 {[%clk 0:02:59.2]} 4.
f4 {[%clk 0:03:00.2]} 4... d5 {[%clk 0:02:57.3]} 5. e5 {[%clk 0:03:00.6]} 5...
h5 {[%clk 0:02:57.6]} 6. Nf3 {[%clk 0:02:59.8]} 6... Nh6 {[%clk 0:02:57.4]} 7.
Be2 {[%clk 0:02:59.7]} 7... Bg4 {[%clk 0:02:57.1]} 8. O-O {[%clk 0:02:59.9]}
8... Nf5 {[%clk 0:02:57.3]} 9. Ng5 {[%clk 0:02:59.7]} 9... Bxe2 {[%clk
0:02:54.7]} 10. Nxe2 {[%clk 0:03:00.6]} 10... e6 {[%clk 0:02:54.8]} 11. Qd3
{[%clk 0:03:00.4]} 11... Bh6 {[%clk 0:02:54.2]} 12. b3 {[%clk 0:02:59.3]} 12...
Nd7 {[%clk 0:02:51.1]} 13. c4 {[%clk 0:02:59]} 13... Bxg5 {[%clk 0:02:49.8]} 14.
fxg5 {[%clk 0:02:58.5]} 14... dxc4 {[%clk 0:02:47]} 15. bxc4 {[%clk 0:02:58.2]}
15... Nxe5 {[%clk 0:02:45.2]} 16. Qc3 {[%clk 0:02:55.7]} 16... Nd7 {[%clk
0:02:28.9]} 17. d5 {[%clk 0:02:56.1]} 17... Qb6+ {[%clk 0:02:17.9]} 18. Kh1
{[%clk 0:02:55.5]} 18... e5 {[%clk 0:02:12.4]} 19. Ba3 {[%clk 0:02:41.3]} 19...
c5 {[%clk 0:01:45.1]} 20. Rab1 {[%clk 0:02:37]} 20... Qc7 {[%clk 0:01:43.2]} 21.
Ng3 {[%clk 0:02:37]} 21... Nd6 {[%clk 0:01:39.3]} 22. Qd3 {[%clk 0:02:29.4]}
22... h4 {[%clk 0:01:16.5]} 23. Ne4 {[%clk 0:02:29.3]} 23... Nf5 {[%clk
0:01:17]} 24. Rxb7 {[%clk 0:02:05]} 24... Qxb7 {[%clk 0:01:08.7]} 25. Rxf5
{[%clk 0:02:05.1]} 25... O-O {[%clk 0:01:01]} 26. Rf1 {[%clk 0:02:05]} 26...
Rab8 {[%clk 0:00:58.7]} 27. Bxc5 {[%clk 0:01:56.8]} 27... Nxc5 {[%clk 0:00:54]}
28. Nxc5 {[%clk 0:01:57.7]} 28... Qe7 {[%clk 0:00:22.6]} 29. Ne4 {[%clk
0:01:57.3]} 29... Rb2 {[%clk 0:00:23]} 30. c5 {[%clk 0:01:53.8]} 30... Kg7
{[%clk 0:00:18.2]} 31. c6 {[%clk 0:01:51.8]} 31... Rc8 {[%clk 0:00:16.1]} 32. d6
{[%clk 0:01:50.2]} 32... Qe6 {[%clk 0:00:11.4]} 33. d7 {[%clk 0:01:50.6]} 33...
Rd8 {[%clk 0:00:11.7]} 34. Qc3 {[%clk 0:01:39]} 34... Qf5 {[%clk 0:00:08.5]} 35.
Qe1 {[%clk 0:01:26.9]} 35... h3 {[%clk 0:00:05.4]} 36. Rxf5 {[%clk 0:01:25.7]}
36... hxg2+ {[%clk 0:00:04.2]} 37. Kg1 {[%clk 0:01:25.3]} 1-0

[Event "*** Titled Tuesday Blitz"]
[Site "Chess.com"]
[Date "2020.05.05"]
[Round "3"]
[White "cstevens1"]
[Black "BikingBrian"]
[Result "1-0"]
[WhiteElo "2630"]
[BlackElo "2319"]
[TimeControl "180+1"]
[EndTime "10:28:24 PDT"]
[Termination "cstevens1 won by resignation"]

1. e4 {[%clk 0:03:00.9]} 1... c5 {[%clk 0:02:59.5]} 2. Nf3 {[%clk 0:02:58.9]}
2... g6 {[%clk 0:02:59.8]} 3. c3 {[%clk 0:02:58.4]} 3... Bg7 {[%clk 0:02:59.5]}
4. d4 {[%clk 0:02:58.4]} 4... cxd4 {[%clk 0:03:00.4]} 5. cxd4 {[%clk 0:02:58.4]}
5... d5 {[%clk 0:03:00.6]} 6. e5 {[%clk 0:02:58.5]} 6... Bg4 {[%clk 0:03:00.7]}
7. Nbd2 {[%clk 0:02:58.4]} 7... Nc6 {[%clk 0:02:59]} 8. h3 {[%clk 0:02:58.5]}
8... Bxf3 {[%clk 0:02:59.3]} 9. Nxf3 {[%clk 0:02:59.1]} 9... e6 {[%clk
0:02:59.6]} 10. Bd3 {[%clk 0:02:58.6]} 10... Nge7 {[%clk 0:02:57.9]} 11. O-O
{[%clk 0:02:56.1]} 11... O-O {[%clk 0:02:57.6]} 12. Bf4 {[%clk 0:02:48.2]} 12...
Qb6 {[%clk 0:02:57.3]} 13. Be3 {[%clk 0:02:38.5]} 13... Rac8 {[%clk 0:02:41.8]}
14. Qd2 {[%clk 0:02:32]} 14... Na5 {[%clk 0:02:34.1]} 15. b3 {[%clk 0:02:29.6]}
15... Rc7 {[%clk 0:02:33]} 16. Bh6 {[%clk 0:02:23.2]} 16... Rfc8 {[%clk
0:02:25.3]} 17. Qg5 {[%clk 0:02:21.7]} 17... Bh8 {[%clk 0:02:18.9]} 18. Qh4
{[%clk 0:02:18.7]} 18... Nac6 {[%clk 0:02:15.3]} 19. Be3 {[%clk 0:01:38.6]}
19... Bg7 {[%clk 0:02:07.4]} 20. Ng5 {[%clk 0:01:35.8]} 20... h6 {[%clk
0:02:06.2]} 21. Nf3 {[%clk 0:01:35.6]} 21... Kh7 {[%clk 0:01:46.5]} 22. Qf4
{[%clk 0:00:56]} 22... Ng8 {[%clk 0:01:37.9]} 23. h4 {[%clk 0:00:53.5]} 23...
Nb4 {[%clk 0:01:30.3]} 24. Rad1 {[%clk 0:00:41.4]} 24... Nxd3 {[%clk 0:01:29]}
25. Rxd3 {[%clk 0:00:40.2]} 25... Rc3 {[%clk 0:01:26.9]} 26. Rxc3 {[%clk
0:00:37.6]} 26... Rxc3 {[%clk 0:01:26.3]} 27. Qxf7 {[%clk 0:00:38.5]} 27... Rc6
{[%clk 0:01:11.5]} 28. h5 {[%clk 0:00:35.1]} 28... gxh5 {[%clk 0:01:04.6]} 29.
Qxh5 {[%clk 0:00:33.1]} 29... Qd8 {[%clk 0:00:36]} 30. Ng5+ {[%clk 0:00:32.5]}
30... Kh8 {[%clk 0:00:36]} 31. Nf7+ {[%clk 0:00:32.8]} 1-0

[Event "*** Titled Tuesday Blitz"]
[Site "Chess.com"]
[Date "2020.05.05"]
[Round "3"]
[White "StockholmMissile"]
[Black "IsaacWiebe"]
[Result "1-0"]
[WhiteElo "2402"]
[BlackElo "2136"]
[TimeControl "180+1"]
[EndTime "10:28:27 PDT"]
[Termination "StockholmMissile won by checkmate"]

1. d4 {[%clk 0:03:00.9]} 1... d5 {[%clk 0:02:59.9]} 2. c4 {[%clk 0:03:00.7]}
2... dxc4 {[%clk 0:03:00.1]} 3. e4 {[%clk 0:03:00.1]} 3... Nc6 {[%clk
0:02:58.7]} 4. Nf3 {[%clk 0:02:58.2]} 4... Nf6 {[%clk 0:02:57.9]} 5. e5 {[%clk
0:02:56.5]} 5... Nd5 {[%clk 0:02:56.8]} 6. Bxc4 {[%clk 0:02:57]} 6... Bg4 {[%clk
0:02:55.4]} 7. Be3 {[%clk 0:02:42.2]} 7... e6 {[%clk 0:02:53.6]} 8. O-O {[%clk
0:02:40.1]} 8... Be7 {[%clk 0:01:37.9]} 9. Nbd2 {[%clk 0:02:38.5]} 9... O-O
{[%clk 0:01:37]} 10. Be2 {[%clk 0:02:37.7]} 10... Qd7 {[%clk 0:01:26.2]} 11. Rc1
{[%clk 0:02:37.1]} 11... Rfd8 {[%clk 0:01:23.8]} 12. Qb3 {[%clk 0:02:30.2]}
12... Nb6 {[%clk 0:01:18]} 13. Rfd1 {[%clk 0:02:27.6]} 13... Qd5 {[%clk
0:01:10.6]} 14. Qc2 {[%clk 0:02:27]} 14... Qxa2 {[%clk 0:01:01.1]} 15. Qe4
{[%clk 0:02:14.8]} 15... Bf5 {[%clk 0:00:59.1]} 16. Qf4 {[%clk 0:02:15.1]} 16...
Nd5 {[%clk 0:00:57.3]} 17. Qg3 {[%clk 0:02:14.1]} 17... Qxb2 {[%clk 0:00:42.6]}
18. Bh6 {[%clk 0:02:13.2]} 18... Bg6 {[%clk 0:00:41.9]} 19. Bg5 {[%clk
0:02:09.7]} 19... Bxg5 {[%clk 0:00:37.9]} 20. Qxg5 {[%clk 0:02:09.7]} 20... Nxd4
{[%clk 0:00:32]} 21. Bc4 {[%clk 0:02:01.1]} 21... Nxf3+ {[%clk 0:00:28.7]} 22.
Nxf3 {[%clk 0:02:00.7]} 22... c6 {[%clk 0:00:18.6]} 23. h3 {[%clk 0:01:59.3]}
23... Qb6 {[%clk 0:00:18]} 24. h4 {[%clk 0:01:53.4]} 24... h6 {[%clk 0:00:17.7]}
25. Qg4 {[%clk 0:01:53.2]} 25... Bf5 {[%clk 0:00:17.3]} 26. Qg3 {[%clk
0:01:50.9]} 26... Qc7 {[%clk 0:00:17.6]} 27. Bxd5 {[%clk 0:01:45]} 27... cxd5
{[%clk 0:00:17.6]} 28. Rxc7 {[%clk 0:01:44.1]} 28... Bg6 {[%clk 0:00:18.5]} 29.
Rxb7 {[%clk 0:01:41.9]} 29... a5 {[%clk 0:00:19.4]} 30. Ra1 {[%clk 0:01:40.9]}
30... a4 {[%clk 0:00:19.8]} 31. Qf4 {[%clk 0:01:40.6]} 31... a3 {[%clk
0:00:20.1]} 32. Qb4 {[%clk 0:01:40.3]} 32... a2 {[%clk 0:00:20.1]} 33. Qb2
{[%clk 0:01:39]} 33... Bb1 {[%clk 0:00:20.7]} 34. Rxb1 {[%clk 0:01:37.3]} 34...
axb1=Q+ {[%clk 0:00:19.4]} 35. Qxb1 {[%clk 0:01:37.7]} 35... Rac8 {[%clk
0:00:19.6]} 36. Kh2 {[%clk 0:01:37.8]} 36... d4 {[%clk 0:00:19.9]} 37. Rb3
{[%clk 0:01:36.2]} 37... Rc3 {[%clk 0:00:18.1]} 38. Rxc3 {[%clk 0:01:35.8]}
38... dxc3 {[%clk 0:00:19]} 39. Qc2 {[%clk 0:01:36.4]} 39... Rc8 {[%clk
0:00:19.9]} 40. Nd4 {[%clk 0:01:35.4]} 40... f6 {[%clk 0:00:20.8]} 41. exf6
{[%clk 0:01:34.6]} 41... e5 {[%clk 0:00:20.8]} 42. Ne2 {[%clk 0:01:34.5]} 42...
gxf6 {[%clk 0:00:21.7]} 43. Nxc3 {[%clk 0:01:35]} 43... Kf7 {[%clk 0:00:21.3]}
44. Qh7+ {[%clk 0:01:34.9]} 44... Ke6 {[%clk 0:00:22.2]} 45. Ne4 {[%clk
0:01:35.2]} 45... Rc4 {[%clk 0:00:22]} 46. Qg8+ {[%clk 0:01:34]} 46... Kf5
{[%clk 0:00:21.8]} 47. Qxc4 {[%clk 0:01:34.3]} 47... h5 {[%clk 0:00:22.7]} 48.
Ng3+ {[%clk 0:01:34.3]} 48... Kg6 {[%clk 0:00:22.5]} 49. Qg8+ {[%clk 0:01:34.4]}
49... Kh6 {[%clk 0:00:22.4]} 50. Nf5# {[%clk 0:01:34.8]} 1-0

[Event "*** Titled Tuesday Blitz"]
[Site "Chess.com"]
[Date "2020.05.05"]
[Round "3"]
[White "WeAintSurePal"]
[Black "oskariot"]
[Result "0-1"]
[WhiteElo "2394"]
[BlackElo "2611"]
[TimeControl "180+1"]
[EndTime "10:28:30 PDT"]
[Termination "oskariot won by resignation"]

1. d4 {[%clk 0:03:00.9]} 1... Nf6 {[%clk 0:02:59.8]} 2. Nf3 {[%clk 0:02:56.6]}
2... g6 {[%clk 0:02:59.7]} 3. Bg5 {[%clk 0:02:54.3]} 3... Bg7 {[%clk 0:03:00]}
4. Nbd2 {[%clk 0:02:52.6]} 4... d5 {[%clk 0:03:00.4]} 5. c3 {[%clk 0:02:52.9]}
5... O-O {[%clk 0:03:00.2]} 6. e3 {[%clk 0:02:52.6]} 6... Nbd7 {[%clk
0:03:00.7]} 7. Be2 {[%clk 0:02:50.2]} 7... b6 {[%clk 0:03:00.6]} 8. a4 {[%clk
0:02:48.8]} 8... a6 {[%clk 0:02:57.1]} 9. O-O {[%clk 0:02:48.1]} 9... Bb7 {[%clk
0:02:57.2]} 10. h3 {[%clk 0:02:47.6]} 10... Re8 {[%clk 0:02:57.2]} 11. Qb3
{[%clk 0:02:38.3]} 11... e5 {[%clk 0:02:52.7]} 12. dxe5 {[%clk 0:02:39.2]} 12...
Nxe5 {[%clk 0:02:53.6]} 13. Rfd1 {[%clk 0:02:29.5]} 13... h6 {[%clk 0:02:42.9]}
14. Bh4 {[%clk 0:02:27.2]} 14... Nxf3+ {[%clk 0:02:34.4]} 15. Bxf3 {[%clk
0:02:21.7]} 15... g5 {[%clk 0:02:31.2]} 16. Bg3 {[%clk 0:02:21.7]} 16... Qe7
{[%clk 0:02:25.4]} 17. Qc2 {[%clk 0:02:14]} 17... Rad8 {[%clk 0:02:12.1]} 18.
Nc4 {[%clk 0:01:49.5]} 18... Ne4 {[%clk 0:01:58.4]} 19. Bxe4 {[%clk 0:01:44.1]}
19... dxe4 {[%clk 0:01:55.7]} 20. Rxd8 {[%clk 0:01:37.6]} 20... Rxd8 {[%clk
0:01:54.8]} 21. Rd1 {[%clk 0:01:38.5]} 21... Rd5 {[%clk 0:01:08.8]} 22. Rd2
{[%clk 0:01:18.3]} 22... Qd7 {[%clk 0:00:53.1]} 23. Qd1 {[%clk 0:01:12.1]} 23...
Rd3 {[%clk 0:00:40.6]} 24. Qc2 {[%clk 0:00:54.5]} 24... b5 {[%clk 0:00:34.7]}
25. Rxd3 {[%clk 0:00:42.3]} 25... exd3 {[%clk 0:00:34.6]} 26. Qb3 {[%clk
0:00:38.4]} 26... bxc4 {[%clk 0:00:32.8]} 27. Qxb7 {[%clk 0:00:36.4]} 27... d2
{[%clk 0:00:33.1]} 0-1